[Event "Masters Tournament (MTO)"]
[Site "Biel, Switzerland"]
[Date "2026.07.21"]
[Round "8.26"]
[White "Corbat, Philippe"]
[Black "Monteverde, Jonathan"]
[Result "0-1"]
[TimeControl "100+30+30sec/move"]
[WhiteTitle "-"]
[BlackTitle "-"]
[WhiteFideId "1304496"]
[BlackFideId "1314580"]
[WhiteElo "1893"]
[BlackElo "2098"]

1. e4 {[%clk 01:40:51]} {[%emt 00:00:08]} c5 {[%clk 01:40:51]} {[%emt
00:00:09]} 2. a3 {[%clk 01:41:12]} {[%emt 00:00:09]} g6 {[%clk 01:41:06]}
{[%emt 00:00:15]} 3. h4 {[%clk 01:41:31]} {[%emt 00:00:11]} h5 {[%clk
01:33:06]} {[%emt 00:08:30]} 4. Bc4 {[%clk 01:41:27]} {[%emt 00:00:34]} Nc6
{[%clk 01:32:53]} {[%emt 00:00:43]} 5. Nc3 {[%clk 01:41:03]} {[%emt 00:00:53]}
d6 {[%clk 01:31:44]} {[%emt 00:01:39]} 6. Nf3 {[%clk 01:39:04]} {[%emt
00:02:29]} Bg4 {[%clk 01:28:47]} {[%emt 00:03:27]} 7. Nd5 {[%clk 01:31:04]}
{[%emt 00:08:30]} Bg7 {[%clk 01:22:30]} {[%emt 00:06:48]} 8. Ne3 {[%clk
01:26:37]} {[%emt 00:04:58]} Bxf3 {[%clk 01:22:44]} {[%emt 00:00:15]} 9. Qxf3
{[%clk 01:26:44]} {[%emt 00:00:23]} Ne5 {[%clk 01:23:02]} {[%emt 00:00:13]} 10.
Bb5+ {[%clk 01:26:32]} {[%emt 00:00:41]} Nc6 {[%clk 01:22:10]} {[%emt
00:01:22]} 11. Bxc6+ {[%clk 01:14:42]} {[%emt 00:12:20]} bxc6 {[%clk 01:21:15]}
{[%emt 00:01:25]} 12. c3 {[%clk 01:14:33]} {[%emt 00:00:39]} Nf6 {[%clk
01:15:14]} {[%emt 00:06:31]} 13. e5 {[%clk 01:07:45]} {[%emt 00:07:18]} dxe5
{[%clk 01:15:27]} {[%emt 00:00:16]} 14. Qxc6+ {[%clk 01:07:58]} {[%emt
00:00:18]} Nd7 {[%clk 01:15:44]} {[%emt 00:00:13]} 15. O-O {[%clk 01:03:08]}
{[%emt 00:05:20]} O-O {[%clk 01:15:18]} {[%emt 00:00:56]} 16. d3 {[%clk
00:58:42]} {[%emt 00:04:56]} e6 {[%clk 01:12:24]} {[%emt 00:03:24]} 17. Nc4
{[%clk 00:51:00]} {[%emt 00:08:12]} Rc8 {[%clk 01:08:55]} {[%emt 00:03:59]} 18.
Qa4 {[%clk 00:46:36]} {[%emt 00:04:54]} Nb6 {[%clk 01:06:08]} {[%emt 00:03:17]}
19. Nxb6 {[%clk 00:46:39]} {[%emt 00:00:27]} axb6 {[%clk 01:06:23]} {[%emt
00:00:15]} 20. Qc4 {[%clk 00:44:02]} {[%emt 00:03:07]} Bf6 {[%clk 01:04:51]}
{[%emt 00:02:02]} 21. Bh6 {[%clk 00:42:36]} {[%emt 00:01:56]} Re8 {[%clk
01:04:41]} {[%emt 00:00:40]} 22. g3 {[%clk 00:42:30]} {[%emt 00:00:36]} Qd5
{[%clk 00:53:13]} {[%emt 00:11:58]} 23. Qxd5 {[%clk 00:38:55]} {[%emt
00:04:06]} exd5 {[%clk 00:53:36]} {[%emt 00:00:07]} 24. f4 {[%clk 00:31:28]}
{[%emt 00:07:56]} exf4 {[%clk 00:43:37]} {[%emt 00:10:29]} 25. Bxf4 {[%clk
00:30:25]} {[%emt 00:01:33]} Bg7 {[%clk 00:43:16]} {[%emt 00:00:51]} 26. Rae1
{[%clk 00:28:37]} {[%emt 00:02:17]} f5 {[%clk 00:42:43]} {[%emt 00:01:04]} 27.
Kf2 {[%clk 00:27:51]} {[%emt 00:01:16]} Kf7 {[%clk 00:42:54]} {[%emt 00:00:19]}
28. Rxe8 {[%clk 00:26:33]} {[%emt 00:01:48]} Kxe8 {[%clk 00:41:19]} {[%emt
00:02:05]} 29. Re1+ {[%clk 00:24:55]} {[%emt 00:02:08]} Kd7 {[%clk 00:41:16]}
{[%emt 00:00:33]} 30. Kf3 {[%clk 00:19:06]} {[%emt 00:06:19]} Bf6 {[%clk
00:40:24]} {[%emt 00:01:22]} 31. Re2 {[%clk 00:17:32]} {[%emt 00:02:03]} b5
{[%clk 00:40:37]} {[%emt 00:00:18]} 32. Be5 {[%clk 00:16:07]} {[%emt 00:01:55]}
Be7 {[%clk 00:40:14]} {[%emt 00:00:53]} 33. d4 {[%clk 00:14:56]} {[%emt
00:01:41]} b4 {[%clk 00:39:22]} {[%emt 00:01:22]} 34. axb4 {[%clk 00:12:10]}
{[%emt 00:03:17]} cxb4 {[%clk 00:39:40]} {[%emt 00:00:11]} 35. cxb4 {[%clk
00:09:35]} {[%emt 00:03:05]} Bxb4 {[%clk 00:39:24]} {[%emt 00:00:46]} 36. Re3
{[%clk 00:05:47]} {[%emt 00:04:17]} Rc6 {[%clk 00:31:25]} {[%emt 00:08:29]} 37.
Rb3 {[%clk 00:03:58]} {[%emt 00:02:19]} Rb6 {[%clk 00:31:46]} {[%emt 00:00:10]}
38. Bg7 {[%clk 00:03:14]} {[%emt 00:01:14]} Kc6 {[%clk 00:31:34]} {[%emt
00:00:42]} 39. Re3 {[%clk 00:03:09]} {[%emt 00:00:35]} Kd7 {[%clk 00:22:37]}
{[%emt 00:09:28]} 40. Re5 {[%clk 00:02:04]} {[%emt 00:01:35]} Bd6 {[%clk
00:19:16]} {[%emt 00:03:50]} 41. Rxd5 {[%clk 00:29:05]} {[%emt 00:03:29]} Kc6
{[%clk 00:40:09]} {[%emt 00:09:37]} 42. Rxd6+ {[%clk 00:27:28]} {[%emt
00:02:07]} Kxd6 {[%clk 00:40:30]} {[%emt 00:00:09]} 43. Kf4 {[%clk 00:27:41]}
{[%emt 00:00:16]} Rb3 {[%clk 00:29:20]} {[%emt 00:11:41]} 44. Be5+ {[%clk
00:27:31]} {[%emt 00:00:40]} Ke6 {[%clk 00:29:42]} {[%emt 00:00:08]} 45. Kg5
{[%clk 00:27:11]} {[%emt 00:00:49]} Kf7 {[%clk 00:30:05]} {[%emt 00:00:08]} 46.
Bf4 {[%clk 00:25:54]} {[%emt 00:01:47]} Rd3 {[%clk 00:28:36]} {[%emt 00:01:58]}
47. Be5 {[%clk 00:26:09]} {[%emt 00:00:16]} Rb3 {[%clk 00:28:23]} {[%emt
00:00:44]} 48. Bf4 {[%clk 00:26:22]} {[%emt 00:00:17]} Rxb2 {[%clk 00:28:47]}
{[%emt 00:00:05]} 49. Be5 {[%clk 00:26:25]} {[%emt 00:00:27]} Re2 {[%clk
00:28:46]} {[%emt 00:00:31]} 50. Kh6 {[%clk 00:25:12]} {[%emt 00:01:42]} Re4
{[%clk 00:25:54]} {[%emt 00:03:22]} 51. Kh7 {[%clk 00:24:03]} {[%emt 00:01:39]}
Rg4 {[%clk 00:25:01]} {[%emt 00:01:24]} 52. Kh6 {[%clk 00:22:59]} {[%emt
00:01:33]} g5 {[%clk 00:21:14]} {[%emt 00:04:17]} 53. Kxh5 {[%clk 00:19:31]}
{[%emt 00:03:59]} gxh4 {[%clk 00:21:14]} {[%emt 00:00:30]} 54. gxh4 {[%clk
00:19:10]} {[%emt 00:00:51]} Ke6 {[%clk 00:21:31]} {[%emt 00:00:13]} 55. Bh8
{[%clk 00:17:54]} {[%emt 00:01:45]} Kd5 {[%clk 00:18:50]} {[%emt 00:03:12]} 56.
Bf6 {[%clk 00:16:36]} {[%emt 00:01:48]} Ke4 {[%clk 00:17:28]} {[%emt 00:01:52]}
57. Be5 {[%clk 00:13:48]} {[%emt 00:03:18]} Rg2 {[%clk 00:12:20]} {[%emt
00:05:38]} 58. Kh6 {[%clk 00:08:53]} {[%emt 00:05:26]} f4 {[%clk 00:12:21]}
{[%emt 00:00:28]} 59. Bxf4 {[%clk 00:08:25]} {[%emt 00:00:58]} Kxf4 {[%clk
00:12:45]} {[%emt 00:00:06]} 60. h5 {[%clk 00:08:49]} {[%emt 00:00:06]} Rd2
{[%clk 00:11:02]} {[%emt 00:02:13]} 61. Kg6 {[%clk 00:07:55]} {[%emt 00:01:24]}
Rxd4 {[%clk 00:11:18]} {[%emt 00:00:13]} 62. h6 {[%clk 00:08:09]} {[%emt
00:00:16]} Rd6+ {[%clk 00:11:42]} {[%emt 00:00:07]} 63. Kg7 {[%clk 00:08:01]}
{[%emt 00:00:38]} Kg5 {[%clk 00:12:04]} {[%emt 00:00:07]} 64. h7 {[%clk
00:08:04]} {[%emt 00:00:28]} Rd7+ {[%clk 00:12:29]} {[%emt 00:00:05]} 65. Kg8
{[%clk 00:08:17]} {[%emt 00:00:17]} Kg6 {[%clk 00:12:52]} {[%emt 00:00:07]} 66.
h8=N+ {[%clk 00:08:37]} {[%emt 00:00:11]} Kf6 {[%clk 00:13:14]} {[%emt
00:00:08]} 0-1

[Event "Masters Tournament (MTO)"]
[Site "Biel, Switzerland"]
[Date "2026.07.21"]
[Round "8.27"]
[White "Malli, Suvirr"]
[Black "Heitmann, Erik"]
[Result "1-0"]
[TimeControl "100+30+30sec/move"]
[WhiteTitle "-"]
[BlackTitle "-"]
[WhiteFideId "1341855"]
[BlackFideId "34608940"]
[WhiteElo "2120"]
[BlackElo "1949"]

1. e4 {[%clk 01:40:57]} {[%emt 00:00:02]} c5 {[%clk 01:40:57]} {[%emt
00:00:05]} 2. Nf3 {[%clk 01:41:19]} {[%emt 00:00:07]} d6 {[%clk 01:41:24]}
{[%emt 00:00:03]} 3. d4 {[%clk 01:41:42]} {[%emt 00:00:07]} cxd4 {[%clk
01:41:53]} {[%emt 00:00:02]} 4. Nxd4 {[%clk 01:41:59]} {[%emt 00:00:12]} Nf6
{[%clk 01:42:21]} {[%emt 00:00:02]} 5. Nc3 {[%clk 01:42:18]} {[%emt 00:00:11]}
a6 {[%clk 01:42:48]} {[%emt 00:00:03]} 6. Be2 {[%clk 01:42:40]} {[%emt
00:00:07]} e5 {[%clk 01:43:12]} {[%emt 00:00:06]} 7. Nb3 {[%clk 01:43:06]}
{[%emt 00:00:04]} Be7 {[%clk 01:42:55]} {[%emt 00:00:47]} 8. Be3 {[%clk
01:43:30]} {[%emt 00:00:08]} Qc7 {[%clk 01:42:26]} {[%emt 00:00:59]} 9. a4
{[%clk 01:36:37]} {[%emt 00:07:22]} Be6 {[%clk 01:41:12]} {[%emt 00:01:43]} 10.
Nd5 {[%clk 01:35:59]} {[%emt 00:01:09]} Bxd5 {[%clk 01:37:32]} {[%emt
00:04:10]} 11. exd5 {[%clk 01:36:11]} {[%emt 00:00:18]} a5 {[%clk 01:35:15]}
{[%emt 00:02:47]} 12. Qd3 {[%clk 01:32:04]} {[%emt 00:04:37]} Nbd7 {[%clk
01:34:38]} {[%emt 00:01:07]} 13. c4 {[%clk 01:30:58]} {[%emt 00:01:36]} b6
{[%emt 00:01:07]} 14. g4 {[%clk 01:30:24]} h6 {[%clk 01:29:18]} {[%emt
00:06:16]} 15. h4 {[%clk 01:19:46]} {[%emt 00:11:08]} Rc8 {[%clk 01:17:47]}
{[%emt 00:12:02]} 16. Rg1 {[%clk 01:12:42]} {[%emt 00:07:33]} g6 {[%clk
00:49:03]} {[%emt 00:29:15]} 17. Rc1 {[%clk 00:58:51]} {[%emt 00:14:21]} Nc5
{[%clk 00:45:00]} {[%emt 00:04:34]} 18. Nxc5 {[%clk 00:56:08]} {[%emt
00:03:12]} bxc5 {[%clk 00:45:26]} {[%emt 00:00:05]} 19. Bd2 {[%clk 00:51:13]}
{[%emt 00:05:24]} Nd7 {[%clk 00:39:02]} {[%emt 00:06:55]} 20. Rh1 {[%clk
00:44:12]} {[%emt 00:07:30]} Bf6 {[%clk 00:33:27]} {[%emt 00:06:04]} 21. Rb1
{[%clk 00:40:32]} {[%emt 00:04:12]} Bg7 {[%clk 00:27:27]} {[%emt 00:06:28]} 22.
Kf1 {[%clk 00:30:11]} {[%emt 00:10:52]} O-O {[%clk 00:16:47]} {[%emt 00:11:10]}
23. h5 {[%clk 00:28:40]} {[%emt 00:02:01]} g5 {[%clk 00:16:16]} {[%emt
00:01:01]} 24. Qf5 {[%clk 00:27:45]} {[%emt 00:01:24]} Qd8 {[%clk 00:01:33]}
{[%emt 00:15:15]} 25. Rh3 {[%clk 00:22:48]} {[%emt 00:05:26]} Nb8 {[%clk
00:00:37]} {[%emt 00:01:26]} 26. Rf3 {[%clk 00:21:35]} {[%emt 00:01:43]} Qe7
{[%clk 00:00:33]} {[%emt 00:00:34]} 27. Bxa5 {[%clk 00:20:09]} {[%emt
00:01:56]} Nd7 {[%clk 00:00:41]} {[%emt 00:00:22]} 28. Bd2 {[%clk 00:19:33]}
{[%emt 00:01:06]} Ra8 {[%clk 00:00:35]} {[%emt 00:00:36]} 29. a5 {[%clk
00:19:49]} {[%emt 00:00:14]} Ra7 {[%clk 00:00:40]} {[%emt 00:00:25]} 30. Bd3
{[%clk 00:17:30]} {[%emt 00:02:49]} Re8 {[%clk 00:01:07]} {[%emt 00:00:04]} 31.
Bxg5 {[%clk 00:15:03]} {[%emt 00:02:55]} hxg5 {[%clk 00:00:33]} {[%emt
00:01:05]} 32. Qh7+ {[%clk 00:14:34]} {[%emt 00:00:59]} Kf8 {[%clk 00:01:02]}
{[%emt 00:00:01]} 33. h6 {[%clk 00:14:55]} {[%emt 00:00:09]} f6 {[%clk
00:01:14]} {[%emt 00:00:18]} 34. Rh3 {[%clk 00:13:26]} {[%emt 00:01:58]} Nb8
{[%clk 00:00:36]} {[%emt 00:01:09]} 35. hxg7+ {[%clk 00:13:09]} {[%emt
00:00:47]} Qxg7 {[%clk 00:00:49]} {[%emt 00:00:17]} 36. Qf5 {[%clk 00:13:25]}
{[%emt 00:00:14]} Rf7 {[%clk 00:00:34]} {[%emt 00:00:45]} 37. Be4 {[%clk
00:13:11]} {[%emt 00:00:43]} Na6 {[%emt 00:00:22]} 38. Kg2 {[%clk 00:13:03]}
{[%emt 00:00:37]} Nc7 {[%emt 00:00:38]} 39. Rbh1 {[%clk 00:13:28]} Rd8 {[%clk
00:00:34]} {[%emt 00:00:37]} 40. Rh7 {[%clk 00:13:30]} {[%emt 00:00:27]} 1-0

[Event "Masters Tournament (MTO)"]
[Site "Biel, Switzerland"]
[Date "2026.07.21"]
[Round "8.28"]
[White "Joly, Julien"]
[Black "Stevens, Christian"]
[Result "1-0"]
[TimeControl "100+30+30sec/move"]
[WhiteTitle "-"]
[BlackTitle "-"]
[WhiteFideId "26082284"]
[BlackFideId "649090"]
[WhiteElo "2257"]
[BlackElo "2014"]

1. d4 {[%clk 01:40:42]} {[%emt 00:00:16]} Nf6 {[%clk 01:40:54]} {[%emt
00:00:06]} 2. c4 {[%clk 01:40:51]} {[%emt 00:00:21]} g6 {[%clk 01:41:19]}
{[%emt 00:00:05]} 3. Nc3 {[%clk 01:40:44]} {[%emt 00:00:37]} Bg7 {[%clk
01:41:43]} {[%emt 00:00:06]} 4. e4 {[%clk 01:40:18]} {[%emt 00:00:57]} d6
{[%clk 01:42:08]} {[%emt 00:00:05]} 5. Be2 {[%clk 01:40:30]} {[%emt 00:00:17]}
O-O {[%clk 01:42:30]} {[%emt 00:00:07]} 6. Nf3 {[%clk 01:39:46]} {[%emt
00:01:15]} e5 {[%clk 01:42:54]} {[%emt 00:00:06]} 7. O-O {[%clk 01:39:30]}
{[%emt 00:00:46]} Nc6 {[%clk 01:43:20]} {[%emt 00:00:05]} 8. d5 {[%clk
01:38:58]} {[%emt 00:01:02]} Ne7 {[%clk 01:43:44]} {[%emt 00:00:05]} 9. Ne1
{[%clk 01:37:51]} {[%emt 00:01:37]} Nd7 {[%clk 01:44:05]} {[%emt 00:00:09]} 10.
Nd3 {[%clk 01:37:35]} {[%emt 00:00:45]} f5 {[%clk 01:43:52]} {[%emt 00:00:44]}
11. f3 {[%clk 01:37:09]} {[%emt 00:00:56]} Rf7 {[%clk 01:43:23]} {[%emt
00:00:58]} 12. b4 {[%clk 01:36:19]} {[%emt 00:01:20]} a5 {[%clk 01:43:04]}
{[%emt 00:00:50]} 13. bxa5 {[%clk 01:34:43]} {[%emt 00:02:07]} Rxa5 {[%clk
01:43:16]} 14. a4 {[%clk 01:33:56]} {[%emt 00:01:34]} Kh8 {[%clk 01:36:18]}
{[%emt 00:07:27]} 15. Bd2 {[%clk 01:30:41]} {[%emt 00:03:46]} Ng8 {[%clk
01:31:07]} {[%emt 00:05:42]} 16. Nb5 {[%clk 01:20:53]} {[%emt 00:10:18]} Ra6
{[%clk 01:25:08]} {[%emt 00:06:28]} 17. Qc1 {[%clk 01:18:26]} {[%emt 00:02:56]}
Ndf6 {[%clk 01:22:16]} {[%emt 00:03:23]} 18. c5 {[%clk 01:16:11]} {[%emt
00:02:46]} Bf8 {[%clk 01:13:50]} {[%emt 00:08:55]} 19. a5 {[%clk 00:55:42]}
{[%emt 00:20:59]} Rg7 {[%clk 01:10:01]} {[%emt 00:04:19]} 20. Qc4 {[%clk
00:50:06]} {[%emt 00:06:06]} c6 {[%clk 00:52:00]} {[%emt 00:18:31]} 21. Nxd6
{[%clk 00:37:53]} {[%emt 00:12:43]} cxd5 {[%clk 00:46:10]} {[%emt 00:06:21]} 22.
exd5 {[%clk 00:37:44]} {[%emt 00:00:38]} Rxd6 {[%clk 00:45:26]} {[%emt
00:01:14]} 23. cxd6 {[%clk 00:37:49]} {[%emt 00:00:25]} Bxd6 {[%clk 00:45:46]}
{[%emt 00:00:09]} 24. Rac1 {[%clk 00:31:19]} {[%emt 00:07:01]} Rc7 {[%clk
00:44:15]} {[%emt 00:02:01]} 25. Qh4 {[%clk 00:28:51]} {[%emt 00:02:58]} Kg7
{[%clk 00:44:20]} {[%emt 00:00:25]} 26. Be3 {[%clk 00:27:10]} {[%emt 00:02:11]}
Qd7 {[%clk 00:38:13]} {[%emt 00:06:36]} 27. Rfd1 {[%clk 00:17:50]} {[%emt
00:09:51]} Nxd5 {[%clk 00:35:17]} {[%emt 00:03:26]} 28. Nc5 {[%clk 00:13:11]}
{[%emt 00:05:10]} Bxc5 {[%clk 00:30:54]} {[%emt 00:04:52]} 29. Rxc5 {[%clk
00:12:06]} {[%emt 00:01:35]} Rxc5 {[%clk 00:30:17]} {[%emt 00:01:08]} 30. Bxc5
{[%clk 00:12:34]} {[%emt 00:00:01]} Ngf6 {[%clk 00:29:22]} {[%emt 00:01:24]} 31.
Qc4 {[%clk 00:12:26]} {[%emt 00:00:39]} Qc6 {[%clk 00:27:13]} {[%emt 00:02:39]}
32. a6 {[%clk 00:10:55]} {[%emt 00:02:01]} 1-0

[Event "Masters Tournament (MTO)"]
[Site "Biel, Switzerland"]
[Date "2026.07.21"]
[Round "8.29"]
[White "Arndt, Uwe"]
[Black "Fogo Esquivel, Levi Kalani Alexander"]
[Result "1/2-1/2"]
[TimeControl "100+30+30sec/move"]
[WhiteTitle "-"]
[BlackTitle "-"]
[WhiteFideId "24647713"]
[BlackFideId "5183189"]
[WhiteElo "2005"]
[BlackElo "2125"]

1. d4 {[%clk 01:40:58]} Nf6 {[%clk 01:40:53]} {[%emt 00:00:07]} 2. c4 {[%clk
01:41:21]} {[%emt 00:00:07]} e6 {[%clk 01:41:18]} {[%emt 00:00:03]} 3. Nf3
{[%clk 01:41:37]} {[%emt 00:00:14]} d5 {[%clk 01:41:41]} {[%emt 00:00:07]} 4.
g3 {[%clk 01:42:00]} {[%emt 00:00:08]} Be7 {[%clk 01:42:06]} {[%emt 00:00:05]}
5. Bg2 {[%clk 01:42:21]} {[%emt 00:00:09]} O-O {[%clk 01:42:28]} {[%emt
00:00:07]} 6. O-O {[%clk 01:42:42]} {[%emt 00:00:10]} dxc4 {[%clk 01:42:53]}
{[%emt 00:00:05]} 7. Qc2 {[%clk 01:42:59]} {[%emt 00:00:12]} b5 {[%clk
01:43:16]} {[%emt 00:00:06]} 8. a4 {[%clk 01:36:42]} {[%emt 00:06:48]} b4
{[%clk 01:43:35]} {[%emt 00:00:12]} 9. Ne5 {[%clk 01:29:56]} {[%emt 00:07:15]}
Nd5 {[%clk 01:43:26]} {[%emt 00:00:39]} 10. Nxc4 {[%clk 01:28:42]} {[%emt
00:01:44]} c5 {[%clk 01:43:30]} {[%emt 00:00:26]} 11. dxc5 {[%clk 01:27:05]}
{[%emt 00:02:08]} Bxc5 {[%clk 01:43:41]} {[%emt 00:00:17]} 12. Rd1 {[%clk
01:20:14]} {[%emt 00:07:22]} Nd7 {[%clk 01:43:14]} {[%emt 00:00:57]} 13. e4
{[%clk 01:12:23]} {[%emt 00:08:21]} N5b6 {[%clk 01:43:08]} {[%emt 00:00:36]} 14.
Ne5 {[%clk 00:56:09]} {[%emt 00:16:45]} Qc7 {[%clk 01:25:05]} {[%emt 00:18:32]}
15. Nd3 {[%clk 00:52:38]} {[%emt 00:04:00]} Ba6 {[%clk 01:17:53]} {[%emt
00:07:43]} 16. Nxb4 {[%clk 00:51:35]} {[%emt 00:01:34]} Bc4 {[%clk 01:02:01]}
{[%emt 00:16:22]} 17. a5 {[%clk 00:46:47]} {[%emt 00:05:18]} Nc8 {[%clk
01:00:48]} {[%emt 00:01:43]} 18. e5 {[%clk 00:34:53]} {[%emt 00:12:23]} Rb8
{[%clk 00:54:59]} {[%emt 00:06:20]} 19. Nc6 {[%clk 00:34:42]} {[%emt 00:00:41]}
Bb3 {[%clk 00:53:22]} {[%emt 00:02:07]} 20. Rxd7 {[%clk 00:34:57]} {[%emt
00:00:13]} Qxc6 {[%clk 00:52:41]} {[%emt 00:01:13]} 21. Qxh7+ {[%clk 00:35:04]}
{[%emt 00:00:22]} Kxh7 {[%clk 00:52:55]} {[%emt 00:00:17]} 22. Bxc6 {[%clk
00:35:22]} {[%emt 00:00:11]} Ne7 {[%clk 00:52:00]} {[%emt 00:01:26]} 23. Be4+
{[%clk 00:35:23]} {[%emt 00:00:27]} Kg8 {[%clk 00:52:19]} {[%emt 00:00:12]} 24.
Nd2 {[%clk 00:30:25]} {[%emt 00:05:26]} Bd5 {[%clk 00:48:13]} {[%emt 00:04:37]}
25. Bxd5 {[%clk 00:29:01]} {[%emt 00:01:55]} exd5 {[%clk 00:47:48]} {[%emt
00:00:55]} 26. Rc7 {[%clk 00:27:51]} {[%emt 00:01:39]} Rfc8 {[%clk 00:44:22]}
{[%emt 00:03:57]} 27. Rxc8+ {[%clk 00:28:08]} {[%emt 00:00:13]} Nxc8 {[%clk
00:44:51]} {[%emt 00:00:01]} 28. Kf1 {[%clk 00:26:41]} {[%emt 00:01:57]} Ne7
{[%clk 00:43:45]} {[%emt 00:01:37]} 29. Nb1 {[%clk 00:21:10]} {[%emt 00:05:58]}
Nc6 {[%clk 00:42:09]} {[%emt 00:02:08]} 30. Nc3 {[%clk 00:16:51]} {[%emt
00:04:49]} Nxe5 {[%clk 00:41:12]} {[%emt 00:01:27]} 31. Bf4 {[%clk 00:15:44]}
{[%emt 00:01:37]} f6 {[%clk 00:40:56]} {[%emt 00:00:46]} 32. Nxd5 {[%clk
00:10:26]} {[%emt 00:05:48]} Rxb2 {[%clk 00:41:13]} {[%emt 00:00:13]} 33. Be3
{[%clk 00:10:37]} {[%emt 00:00:18]} Bxe3 {[%clk 00:40:58]} {[%emt 00:00:46]} 34.
Nxe3 {[%clk 00:10:59]} {[%emt 00:00:07]} a6 {[%clk 00:37:48]} {[%emt 00:03:41]}
35. Rd1 {[%clk 00:10:08]} {[%emt 00:01:19]} Ra2 {[%clk 00:37:27]} {[%emt
00:00:52]} 36. Rd5 {[%clk 00:09:59]} {[%emt 00:00:40]} Kf7 {[%clk 00:37:38]}
{[%emt 00:00:19]} 37. f4 {[%clk 00:06:08]} {[%emt 00:04:22]} Nf3 {[%clk
00:37:24]} {[%emt 00:00:42]} 38. h4 {[%clk 00:05:16]} {[%emt 00:01:22]} g6
{[%clk 00:31:42]} {[%emt 00:06:13]} 39. h5 {[%clk 00:02:55]} {[%emt 00:02:51]}
gxh5 {[%clk 00:31:34]} {[%emt 00:00:38]} 40. Rxh5 {[%clk 00:03:06]} {[%emt
00:00:19]} Ke6 {[%clk 00:30:59]} {[%emt 00:01:04]} 41. Rc5 {[%clk 00:02:36]}
{[%emt 00:00:56]} Nd2+ {[%clk 00:28:24]} {[%emt 00:03:10]} 42. Ke1 {[%clk
00:01:38]} {[%emt 00:01:21]} Nf3+ {[%clk 00:28:01]} {[%emt 00:01:00]} 43. Kd1
{[%clk 00:30:00]} {[%emt 00:01:38]} Nd4 {[%clk 00:57:17]} {[%emt 00:01:19]} 44.
f5+ {[%clk 00:30:03]} {[%emt 00:00:52]} Ke7 {[%clk 00:57:38]} {[%emt 00:00:07]}
45. Rd5 {[%clk 00:26:24]} {[%emt 00:04:07]} Nc6 {[%clk 00:54:54]} {[%emt
00:03:16]} 46. Nc4 {[%clk 00:26:03]} {[%emt 00:00:52]} Ra4 {[%clk 00:54:39]}
{[%emt 00:00:43]} 47. Rc5 {[%clk 00:26:18]} {[%emt 00:00:15]} Nd4 {[%clk
00:54:37]} {[%emt 00:00:33]} 48. Ke1 {[%clk 00:20:20]} {[%emt 00:06:30]} Nb3
{[%clk 00:48:00]} {[%emt 00:07:07]} 49. Rc6 {[%clk 00:19:35]} {[%emt 00:01:15]}
Kd7 {[%clk 00:45:09]} {[%emt 00:03:21]} 50. Rd6+ {[%clk 00:15:21]} {[%emt
00:04:43]} Kc7 {[%clk 00:43:08]} {[%emt 00:02:31]} 51. Rxf6 {[%clk 00:15:42]}
{[%emt 00:00:11]} Rxc4 {[%clk 00:43:22]} {[%emt 00:00:15]} 52. Rxa6 {[%clk
00:16:04]} {[%emt 00:00:08]} Ra4 {[%clk 00:39:21]} {[%emt 00:04:31]} 53. Kf2
{[%clk 00:10:44]} {[%emt 00:05:50]} Kd7 {[%clk 00:39:33]} {[%emt 00:00:18]} 54.
Ra7+ {[%clk 00:10:36]} {[%emt 00:00:38]} Ke8 {[%clk 00:39:29]} {[%emt
00:00:33]} 55. Kg2 {[%clk 00:08:16]} {[%emt 00:02:52]} Rxa5 {[%clk 00:39:36]}
{[%emt 00:00:23]} 56. Rxa5 {[%clk 00:08:34]} {[%emt 00:00:12]} Nxa5 {[%clk
00:40:03]} {[%emt 00:00:02]} 57. Kf3 {[%clk 00:08:43]} {[%emt 00:00:21]} Nc6
{[%clk 00:40:32]} {[%emt 00:00:01]} 58. g4 {[%clk 00:08:12]} {[%emt 00:01:01]}
Kf7 {[%clk 00:40:54]} {[%emt 00:00:08]} 59. g5 {[%clk 00:08:30]} {[%emt
00:00:11]} Ne5+ {[%clk 00:41:10]} {[%emt 00:00:16]} 60. Ke4 {[%clk 00:08:02]}
{[%emt 00:00:57]} Nc4 {[%clk 00:41:33]} {[%emt 00:00:06]} 61. Kd4 {[%clk
00:07:21]} {[%emt 00:01:12]} Nd6 {[%clk 00:41:54]} {[%emt 00:00:09]} 62. Ke5
{[%clk 00:07:36]} {[%emt 00:00:16]} Nc4+ {[%clk 00:42:19]} {[%emt 00:00:05]} 63.
Kf4 {[%clk 00:07:06]} {[%emt 00:00:59]} Nd6 {[%clk 00:42:35]} {[%emt 00:00:14]}
64. Kg4 {[%clk 00:07:04]} {[%emt 00:00:32]} Ne4 {[%clk 00:42:43]} {[%emt
00:00:22]} 65. Kh4 {[%clk 00:03:24]} {[%emt 00:04:09]} Nd6 {[%clk 00:43:06]}
{[%emt 00:00:07]} 66. Kg4 {[%clk 00:03:34]} {[%emt 00:00:21]} Ne4 {[%clk
00:43:29]} {[%emt 00:00:07]} 67. Kf4 {[%clk 00:03:46]} {[%emt 00:00:19]} Nd6
{[%clk 00:43:52]} {[%emt 00:00:05]} 68. Ke5 {[%clk 00:03:13]} {[%emt 00:01:04]}
Nc4+ {[%clk 00:44:10]} {[%emt 00:00:12]} 69. Kd5 {[%clk 00:03:04]} {[%emt
00:00:40]} Ne3+ {[%clk 00:44:30]} {[%emt 00:00:07]} 70. Ke4 {[%clk 00:03:16]}
{[%emt 00:00:20]} Nc4 {[%clk 00:44:53]} {[%emt 00:00:07]} 71. Kf3 {[%clk
00:02:40]} {[%emt 00:01:06]} Nd6 {[%clk 00:45:15]} {[%emt 00:00:08]} 72. Kf4
{[%clk 00:02:45]} {[%emt 00:00:25]} Nc4 {[%clk 00:45:26]} {[%emt 00:00:19]} 73.
Kg3 {[%clk 00:00:59]} {[%emt 00:02:16]} Nd6 {[%clk 00:45:45]} {[%emt 00:00:12]}
74. Kg4 {[%clk 00:01:19]} {[%emt 00:00:09]} 1/2-1/2